Cogmind - Beta 11.1 @@@ ROGUE MODE // 2022.07.11 @ 01:32:19 Player: woegarden Result: Destroyed by G-47 Trooper with Particle Gun Performance ------------- Evolutions (2) 1000 Regions Visited (5) 1000 Robots Destroyed (22) 110 Value Destroyed (742) 742 Prototype IDs (0) 0 Alien Tech Used (0) 0 Bonus (400) 400 TOTAL SCORE: 3252 Bonus ------- Pacifist 200 Entered Garrisons 200 Cogmind --------- Core Integrity 0/550 Matter 129/300 Energy 265/265 System Corruption 19% Temperature Cool (9) Movement Treading (160) Location -8/Garrison Parts ------- > --- POWER (1) -------- Reinforced Ion Engine > --- PROPULSION (4) --- Light Treads Light Treads Compact Wheel > --- UTILITY (4) ------ (None) > --- WEAPON (2) ------- Light Assault Rifle Light Assault Rifle > --- INVENTORY (5) ---- Sensor Array Relay Coupler [Grunt] (26) Peak State ------------ > --- POWER ------------ (None) > --- PROPULSION ------- Armored Treads Armored Treads Armored Treads Armored Treads > --- UTILITY ---------- Heat Sink Small Storage Unit Utility Shielding > --- WEAPON ----------- Particle Gun > --- INVENTORY -------- Compact Wheel Advanced Weight Redist. System Visual Processing Unit Sensor Array Improved Terrain Scanner Rocket Launcher [Rating: 18] Favorites ----------- Power Light Ion Engine Engine Light Ion Engine Propulsion Armored Treads Treads Armored Treads Leg Aluminum Leg Wheel Compact Wheel Flight Unit Flight Unit Utility Small Storage Unit Device Advanced Weight Redist. System Storage Small Storage Unit Processor Visual Processing Unit Protection Light Armor Plating Weapon Light Assault Rifle Energy Gun Pulse Rifle Energy Cannon Beam Cannon Ballistic Gun Light Assault Rifle Launcher Rocket Launcher Impact Weapon Hammer Build | -11 -10 -9 -9 -8 -8 ------- Run | Scr Mat Mat Min Mat Gar Slots Evolved 4 | . . 2 . 2 . Power . | . . . . . . Propulsion 2 | . . . . 2 . Utility 2 | . . 2 . . . Weapon . | . . . . . . Parts Attached 44 | . 1 15 2 3 23 Power 8 | . 1 3 . . 4 Engine 8 | . 1 3 . . 4 Core . | . . . . . . Reactor . | . . . . . . Propulsion 14 | . . 4 . 2 8 Treads 12 | . . 4 . 2 6 Leg . | . . . . . . Wheel 1 | . . . . . 1 Hover . | . . . . . . Flight 1 | . . . . . 1 Utility 7 | . . 1 1 1 4 Device 4 | . . 1 1 . 2 Storage . | . . . . . . Processor 1 | . . . . . 1 Hackware . | . . . . . . Protection 2 | . . . . 1 1 Artifact . | . . . . . . Weapon 15 | . . 7 1 . 7 Energy Gun 3 | . . 2 1 . . Energy Cannon 1 | . . 1 . . . Ballistic Gun 8 | . . 2 . . 6 Ballistic Cannon . | . . . . . . Launcher 2 | . . 1 . . 1 Special Weapon . | . . . . . . Impact Weapon 1 | . . 1 . . . Slashing Weapon . | . . . . . . Piercing Weapon . | . . . . . . Special Melee Weapon . | . . . . . . Unidentified Prototypes . | . . . . . . Parts Lost 28 | . . 5 2 . 21 Power 5 | . . 2 1 . 2 Propulsion 8 | . . . . . 8 Utility 7 | . . 1 . . 6 Weapon 8 | . . 2 1 . 5 Highest Loss Streak 13 | . . 3 2 . 13 To Critical Strikes . | . . . . . . Average Slot Usage (%) 68 | . 74 63 65 67 71 Engine 8 | . 14 8 11 . 7 Treads 17 | . . 20 22 36 19 Leg 3 | . 17 . . . . Wheel 1 | . . . . . 5 Device 5 | . . 3 5 9 9 Storage 8 | . 14 11 11 9 3 Processor 1 | . . . . . 5 Protection 2 | . . . . 4 7 Energy Gun 6 | . 14 8 5 9 1 Ballistic Gun 8 | . 14 8 10 . 5 Launcher 1 | . . . . . 4 Naked Turns . | . . . . . . Heaviest Build 16 | 10 10 16 14 10 16 Greatest Support 80 | 20 20 49 40 80 80 Greatest Overweight (x) 1 | . . . . . 1 Average Overweight (x) . | . . . . . . Largest Inventory Capacity 8 | . 8 8 8 8 8 Average Capacity 7 | . 8 8 8 8 5 Most Carried 8 | . 8 8 7 6 7 Average Carried 6 | . 7 7 7 5 4 Final Capacity 8 | 8 8 8 8 8 5 Final Carried 8 | 6 8 7 7 6 2 Class Distribution -------------------- 81% | Mutant 18% | Scavenger-Mutant Dominant Class ---------------- Mutant | -10/Materials Mutant | -9/Materials Mutant | -9/Mines Mutant | -8/Materials Scavenger-Mutant | -8/Garrison Resources | -11 -10 -9 -9 -8 -8 ----------- Run | Scr Mat Mat Min Mat Gar Matter Collected 548 | 163 . 179 123 . 83 Remotely . | . . . . . . Salvage Created 580 | . . 238 140 . 202 Parts 50 | . . 21 10 . 19 Haulers Intercepted . | . . . . . . Recyclers Shooed 2 | . . 2 . . . Parts Field Recycled . | . . . . . . Retrieved Matter . | . . . . . . Parts Self-Destructed . | . . . . . . Prevented . | . . . . . . Kills | -11 -10 -9 -9 -8 -8 ------- Run | Scr Mat Mat Min Mat Gar Combat Hostiles Destroyed 20 | . . 7 4 . 9 Guns 13 | . . 7 4 . 2 AOE 7 | . . . . . 7 Classes Destroyed 6 | . . 5 . . 1 Worker 1 | . . 1 . . . Watcher 1 | . . 1 . . . Swarmer 9 | . . 3 1 . 5 Grunt 6 | . . 3 3 . . Brawler 3 | . . 1 . . 2 Sentry 2 | . . . . . 2 Best Kill Streak 4 | . . 3 3 . 4 Combat Bots Only 4 | . . 2 3 . 4 Max Kills in Single Turn 3 | . . 1 1 . 3 Gunslinging . | . . . . . . Exploded 3 | . . . . . 3 Melee . | . . . . . . Uniques/NPCs Destroyed . | . . . . . . Combat | -11 -10 -9 -9 -8 -8 -------- Run | Scr Mat Mat Min Mat Gar Damage Taken 3802 | . 45 1202 418 16 2121 Core 827 | . 24 193 50 . 560 Absorbed by Shields 22 | . . . . . 22 Redirected to Shielding 13 | . . . . . 13 Core Remaining (%) 76 | 100 90 . 39 . . Volleys Fired 87 | . . 45 15 . 27 Largest 2 | . . 2 1 . 2 Hottest 123 | . . 123 20 . 65 Shots Fired 109 | . . 63 15 . 31 Gun 94 | . . 54 15 . 25 Cannon 9 | . . 9 . . . Launcher 6 | . . . . . 6 Special . | . . . . . . Kinetic 62 | . . 33 14 . 15 Thermal 41 | . . 30 1 . 10 Explosive 6 | . . . . . 6 Electromagnetic . | . . . . . . Robot Hit Streak 10 | . . 10 5 . 7 Robot Miss Streak 6 | . . 6 2 . 2 Penetration Max . | . . . . . . Secondary Targets . | . . . . . . Shots Hit Robots 69 | . . 39 11 . 19 Core Hits 33 | . . 12 8 . 13 Critical Kills . | . . . . . . Critical Parts Destroyed . | . . . . . . Critical Strikes . | . . . . . . Melee Attacks 1 | . . 1 . . . Impact 1 | . . 1 . . . Slashing . | . . . . . . Piercing . | . . . . . . Sneak Attacks . | . . . . . . Combat Hostiles . | . . . . . . Follow-up Attacks . | . . . . . . Damage Inflicted 1355 | . . 518 159 . 678 Guns 757 | . . 406 159 . 192 Cannons 87 | . . 87 . . . Explosions 474 | . . . . . 474 Melee 23 | . . 23 . . . Ramming 14 | . . 2 . . 12 Kinetic 418 | . . 202 141 . 75 Thermal 426 | . . 291 18 . 117 Explosive 474 | . . . . . 474 Electromagnetic . | . . . . . . Impact 23 | . . 23 . . . Slashing . | . . . . . . Piercing . | . . . . . . Highest Corruption 19 | . . 12 12 . 19 Average Corruption 11 | . . 11 12 . 14 Corruption Purged . | . . . . . . Corruption Blocked . | . . . . . . Effects 25 | . . 14 8 . 3 Message Errors 4 | . . 2 1 . 1 Matter Fused 5 | . . 3 2 . . Heat Flow Errors 3 | . . 2 . . 1 Energy Discharges 2 | . . 1 1 . . Data Loss (minor) 3 | . . 2 1 . . Data Loss (major) 2 | . . 1 1 . . Misfires 2 | . . 1 1 . . Misdirections 1 | . . 1 . . . Weapon Failures 3 | . . 1 1 . 1 Overload Shots . | . . . . . . Overflow Damage 23 | . . . . . 23 Projectiles . | . . . . . . Explosions 23 | . . . . . 23 Melee . | . . . . . . Knockbacks . | . . . . . . Impact . | . . . . . . Kinetic . | . . . . . . Secondary . | . . . . . . Self-Inflicted Damage 146 | . . . . . 146 Shots 4 | . . . . . 4 Rammed 16 | . . 2 . . 14 Targets Rammed 16 | . . 2 . . 14 Kicked . | . . . . . . Crushed . | . . . . . . Highest Temperature 240 | . . 240 8 . 240 Average Temperature 88 | . . 79 4 . 117 Received Heat Transfer 1184 | . 24 348 138 9 665 Effects 1 | . . 1 . . . Energy Bleed 1 | . . 1 . . . Siege Activations . | . . . . . . Robots Corrupted . | . . . . . . Combat Hostiles . | . . . . . . Parts Fried . | . . . . . . Impact Corruptions . | . . . . . . Robots Melted . | . . . . . . Combat Hostiles . | . . . . . . Parts Melted 3 | . . . . . 3 Heat Transferred 962 | . . 629 37 . 296 Parts Sabotaged . | . . . . . . Parts Stolen . | . . . . . . Parts Stripped . | . . . . . . Power Chain Reactions . | . . . . . . Missiles Intercepted . | . . . . . . Alert | -11 -10 -9 -9 -8 -8 ------- Run | Scr Mat Mat Min Mat Gar Peak Influence 341 | . 30 192 127 41 341 Initial 41 | . . 12 7 41 26 Average 89 | . 10 85 74 41 144 Maximum Alert Level 1 | . . . . . 1 Low Security (%) 86 | . 100 100 100 100 57 Level 1 13 | . . . . . 42 Level 2 . | . . . . . . Level 3 . | . . . . . . Level 4 . | . . . . . . Level 5 . | . . . . . . High Security . | . . . . . . Max Security . | . . . . . . Squads Dispatched 2 | . 1 1 . . . Investigation . | . . . . . . Extermination . | . . . . . . Reinforcement 2 | . 1 1 . . . Assault . | . . . . . . Garrison . | . . . . . . Intercept . | . . . . . . Searches Triggered . | . . . . . . Construction Impeded 1 | . . 1 . . . Haulers Reinforced . | . . . . . . Active Scanning Responses . | . . . . . . Cargo Convoy Interrupts . | . . . . . . Stealth | -11 -10 -9 -9 -8 -8 --------- Run | Scr Mat Mat Min Mat Gar Distress Signals 2 | . 1 1 . . . Communications Jammed . | . . . . . . Distress Signals . | . . . . . . Times Spotted 53 | . 4 21 14 2 12 Peak Tracking Total 9 | . 2 9 7 2 8 Tactical Retreats 2 | . . . 1 . 1 Traps | -11 -10 -9 -9 -8 -8 ------- Run | Scr Mat Mat Min Mat Gar Traps Triggered 1 | . 1 . . . . Indirectly . | . . . . . . Trap Hack Attempts . | . . . . . . Triggered . | . . . . . . Disarmed . | . . . . . . Reprogrammed . | . . . . . . Reused . | . . . . . . Traps Extracted . | . . . . . . Installed . | . . . . . . Triggered . | . . . . . . Machines | -11 -10 -9 -9 -8 -8 ---------- Run | Scr Mat Mat Min Mat Gar Machines Disabled 3 | . . 1 1 . 1 Max in Single Turn 1 | . . 1 1 . 1 Garrison Relay 1 | . . . . . 1 Machines Sabotaged . | . . . . . . Garrisons Compromised . | . . . . . . Overloaded Fab Kills . | . . . . . . Hacking | -11 -10 -9 -9 -8 -8 --------- Run | Scr Mat Mat Min Mat Gar Machines Accessed 2 | . 1 . . 1 . Terminals 1 | . 1 . . . . Fabricators . | . . . . . . Repair Stations . | . . . . . . Recycling Units . | . . . . . . Scanalyzers . | . . . . . . Garrison Access 1 | . . . . 1 . Total Hacks 4 | . 2 . . 2 . Successful 2 | . 1 . . 1 . Failed 2 | . 1 . . 1 . Catastrophic . | . . . . . . Database Lockouts . | . . . . . . Manual . | . . . . . . Terminals 2 | . 2 . . . . Fabricators . | . . . . . . Repair Stations . | . . . . . . Recycling Units . | . . . . . . Scanalyzers . | . . . . . . Garrison Access 2 | . . . . 2 . Terminal Hacks 1 | . 1 . . . . Hauler Manifests 1 | . 1 . . . . Fabricator Hacks . | . . . . . . Repair Station Hacks . | . . . . . . Recycling Unit Hacks . | . . . . . . Scanalyzer . | . . . . . . Garrison Access Hacks 1 | . . . . 1 . Unlock Access 1 | . . . . 1 . Unauthorized Hacks . | . . . . . . Terminals . | . . . . . . Fabricators . | . . . . . . Repair Stations . | . . . . . . Recycling Units . | . . . . . . Scanalyzers . | . . . . . . Garrison Access . | . . . . . . Data Cores Recovered . | . . . . . . Used . | . . . . . . Hacking Detections 2 | . 1 . . 1 . Full Trace Events . | . . . . . . Feedback Events . | . . . . . . Feedback Blocked . | . . . . . . Robot Schematics Acquired . | . . . . . . Robots Built . | . . . . . . Authchips . | . . . . . . Time . | . . . . . . Total Robot Build Rating . | . . . . . . Part Schematics Acquired . | . . . . . . Parts Built . | . . . . . . Authchips . | . . . . . . Time . | . . . . . . Total Part Build Rating . | . . . . . . Parts Repaired . | . . . . . . Time . | . . . . . . Parts Recycled . | . . . . . . Recycled Matter . | . . . . . . Retrieved Matter . | . . . . . . Retrieved Components . | . . . . . . Parts Scanalyzed . | . . . . . . Part Schematics Acquired . | . . . . . . Parts Damaged . | . . . . . . Bothacking | -11 -10 -9 -9 -8 -8 ------------ Run | Scr Mat Mat Min Mat Gar Used RIF Installer . | . . . . . . Robots Hacked . | . . . . . . Non-combat . | . . . . . . Combat . | . . . . . . Robot Hacks Applied . | . . . . . . Relay Couplers Released 3 | . . . . . 3 Machine Destruction 3 | . . . . . 3 Fabnet Peak Effective % . | . . . . . . Robots Rewired . | . . . . . . Allies Hacked . | . . . . . . Hacks Repelled . | . . . . . . Allies | -11 -10 -9 -9 -8 -8 -------- Run | Scr Mat Mat Min Mat Gar Total Allies . | . . . . . . Largest Group . | . . . . . . Highest-Rated Group . | . . . . . . Highest-Rated Ally . | . . . . . . Total Orders . | . . . . . . Ally Attacks . | . . . . . . Total Damage . | . . . . . . Kills . | . . . . . . Allies Corrupted . | . . . . . . Allies Melted . | . . . . . . Intel | -11 -10 -9 -9 -8 -8 ------- Run | Scr Mat Mat Min Mat Gar Robot Analysis Total . | . . . . . . Derelict Logs Recovered . | . . . . . . Drone Launches . | . . . . . . Drone Recoveries . | . . . . . . Exploration | -11 -10 -9 -9 -8 -8 ------------- Run | Scr Mat Mat Min Mat Gar Turns Passed 1203 | . 188 450 146 41 378 Spaces Moved 593 | 1 154 187 67 21 163 Core 2 | . . . . . 2 Treads 401 | . . 160 67 21 153 Legs 182 | 1 154 27 . . . Wheels 8 | . . . . . 8 Hover . | . . . . . . Flight . | . . . . . . Fastest Speed 100 | 120 120 120 170 170 100 Average Speed 151 | 120 120 162 170 170 160 Slowest Speed 170 | 120 120 170 170 170 170 Overloaded Moves . | . . . . . . Propulsion Burnouts . | . . . . . . Robots Hopped . | . . . . . . Cave-ins Triggered . | . . . . . . Exploration Rate (%) 15 | 2 37 16 13 4 22 Regions Visited 5 Branch Regions 1 Pre-discovered Areas . | . . . . . . Known Exits Taken 1 | . . . . 1 . Unknown Exits Taken 4 | 1 1 1 1 . . Scrap Searched . | . . . . . . Spaces Dug . | . . . . . . Terrain Destroyed 59 | . . . . . 59 Melee . | . . . . . . Projectile . | . . . . . . AOE 59 | . . . . . 59 Terrain Rammed . | . . . . . . Walls Destroyed . | . . . . . . Machines Disabled . | . . . . . . Actions | -11 -10 -9 -9 -8 -8 --------- Run | Scr Mat Mat Min Mat Gar Total 771 | . 156 271 83 25 236 Wait 9 | . . 7 . . 2 Move 589 | . 153 186 66 21 163 Hop . | . . . . . . Pick Up 12 | . 2 5 . 1 4 Fast Attach 26 | . 1 7 2 1 15 Attach 12 | . . 3 . 2 7 Detach . | . . . . . . Swap 6 | . . 5 . . 1 Drop 13 | . . 10 . . 3 Fire 87 | . . 45 15 . 27 Melee 1 | . . 1 . . . Ram 2 | . . . . . 2 Kick . | . . . . . . Crush 14 | . . 2 . . 12 Escape Stasis . | . . . . . . Rewire . | . . . . . . Trap . | . . . . . . Miscellaneous . | . . . . . . Route ------- -11/Scrapyard -10/Materials -9/Materials -9/Mines -8/Materials -8/Garrison History --------- Turn | Location | Event 1 | -11/Scrapyard | Discovered new exit (range 0) 1 | -11/Scrapyard | Entered Materials 114 | -10/Materials | Discovered new exit (range 4) 189 | -10/Materials | Entered another Materials area 189 | -9/Materials | Evolved 2 slots: Utility x2 317 | -9/Materials | Build established: Mutant 379 | -9/Materials | System corruption reached 10% 409 | -9/Materials | Lost 3 parts (1p1u1w) 621 | -9/Materials | Discovered new exit (range 11) 639 | -9/Materials | Entered Mines 658 | -9/Mines | Discovered new exit (range 13) 670 | -9/Mines | Core integrity fell below 50% 785 | -9/Mines | Entered Materials 785 | -8/Materials | Evolved 2 slots: Propulsion x2 826 | -8/Materials | Identified exit to Garrison 826 | -8/Materials | Entered Garrison 872 | -8/Garrison | Triggered checkpoint 955 | -8/Garrison | Core integrity fell below 50% 991 | -8/Garrison | Lost 7 parts (1p3n2u1w) 1044 | -8/Garrison | Garrison Relay disabled 1130 | -8/Garrison | Triggered checkpoint 1172 | -8/Garrison | System corruption reached 10% 1175 | -8/Garrison | Core integrity fell below 20% 1204 | -8/Garrison | Destroyed by G-47 Trooper with Particle Gun Last Messages --------------- 01177_ Adv. Weight Redist. System destroyed. 01177_ Visual Processing Unit destroyed. 01177_ System corrupted by crushing effect (+4). 01177_ System corrupted by crushing effect (+5). 01177_ Lgt. Treads destroyed. 01179_ Lgt. Assault Rifle destroyed. 01180_ B-36 Bruiser destroyed. 01182_ Lgt. Treads destroyed. 01183_ Acquired Lgt. Treads. 01186_ Hvy. Assault Rifle destroyed. 01186_ Critical hit (Burn: +37). 01187_ 2Q8UT5ZW:E7&4MERNBW